{"text_format":"1","workbook":"xlsx","n_sheets":2,"sheets":["Cap. Rate","Summary"],"not_rendered":{"charts":0,"images":4,"macros":1,"external_links":0,"defined_names":8,"comments":1,"pivot_tables":0},"unopened":[],"bounds":{"document_bytes":16777216,"sheet_cells":100000,"rows_first":2000,"rows_last":500,"rows_between":2000,"halvings":0,"cell_chars":16384,"cell_head_chars":4096},"cells_cut":0,"cells_raw":0,"read":"whole","date_system":"1900"}

{"sheet":"Cap. Rate","index":0,"n_rows":46,"n_cols":22,"rows_kept":46,"cut":false,"hidden":false,"merged":[[15,0,18,0],[41,0,44,0],[26,8,26,10],[1,0,1,6],[29,1,29,2],[32,1,32,3],[3,1,3,2],[6,1,6,3],[44,1,44,2],[32,11,33,11],[37,1,37,2],[43,1,43,2],[31,8,31,10],[39,1,39,2],[41,1,41,2],[40,1,40,2],[42,1,42,2],[38,1,38,2]]}
[]
["Property Valuation",null,null,null,null,null,null,null,null,null,null,null,null,null,null,null,null,null,null,null,null,0.05]
[null,null,null,null,null,null,null,null,null,null,null,null,null,null,null,null,null,null,null,null,null,0.1]
[null,"Owner's Name:",null,null,null,"Market Cap. Rate:",null,null,null,null,null,null,null,null,null,null,null,null,null,null,null,0.15]
[null,null,null,null,null,"Value:",{"$f":"IF(G4=\"\",\"\",(VLOOKUP(G4,F14:G26,2)))","v":""},null,null,null,null,null,null,null,null,null,null,null,null,null,null,0.2]
[null,null,null,null,null,null,null,null,null,null,null,null,null,null,null,null,null,null,null,null,null,0.25]
[null,"Property Address:",null,null,null,"Asking Price:",null,null,null,null,null,null,"Salt Lake County",null,null,null,null,null,null,null,null,0.3]
[null,null,null,null,null,"Cap. Rate:",{"$f":"IF(ISERROR(C18/G7)=TRUE,\"\",(C18/G7))","v":""},null,null,null,null,null,"Utah County",null,null,null,null,null,null,null,null,0.35]
[null,null,null,null,null,null,null,null,null,null,null,null,null,null,null,null,null,null,null,null,null,0.4]
[null,"Rent:",null,null,null,null,null,null,null,null,null,null,null,null,null,null,null,null,null,null,null,0.45]
[null,null,null,null,null,null,null,null,null,null,null,null,null,null,null,null,null,null,null,null,null,0.5]
[null,"Operating Expenses (%):",null,null,null,null,null,null,null,null,null,null,null,null,null,null,null,null,null,null,0.55000000000000004]
[null,"Operating Expenses ($):",{"$f":"C10*C12","v":0},null,null,"Cap. Rate:","Purchase Price:",null,null,null,null,null,null,null,null,null,null,null,null,null,0.6]
[null,"NOI",{"$f":"C10-C13","v":0},null,null,0.04,{"$f":"$C$18/F14","v":0},null,null,null,null,null,null,null,null,null,null,null,null,null,0.65]
[null,null,null,null,null,4.4999999999999998E-2,{"$f":"$C$18/F15","v":0},"New",1.2E-2,null,null,null,null,null,null,null,null,null,null,null,0.7]
[null,"Annual EGI:",{"$f":"C10*12","v":0},null,null,0.05,0,"Good",1.7999999999999999E-2,null,1,1,null,null,null,null,null,null,null,null,0.75]
[null,"Est. Annual Expenses:",{"$f":"C13*12","v":0},null,null,5.5E-2,0,"Fair",2.7E-2,null,2,1.25,null,null,null,null,null,null,null,null,0.8]
[null,"Annual NOI:",{"$f":"C16-C17","v":0},null,null,0.06,0,"Poor",4.7E-2,null,3,1.5]
[null,null,null,null,null,6.5000000000000002E-2,0,null,null,null,null,4,1.75]
[null,null,null,null,null,7.0000000000000007E-2,0,null,null,null,null,5,2]
[null,null,null,null,null,7.4999999999999997E-2,0,null,null,null,null,6,2.25]
[null,null,null,null,null,0.08,0,null,null,null,null,7,2.5]
[null,null,null,null,null,8.5000000000000006E-2,0]
[null,null,null,null,null,0.09,0]
[null,null,null,null,null,9.5000000000000001E-2,0,null,null,null,null,8,2.75]
[null,null,null,null,null,0.1,0,null,null,null,null,null,3]
[null,null,null,null,null,null,null,null,null,null,null,null,3.25]
[null,null,null,null,null,null,null,null,null,null,null,null,3.5]
[null,null,null,null,null,null,null,null,null,null,null,null,3.75]
[null,null,null,null,null,null,null,null,null,null,null,null,4]
[null,null,null,null,null,null,null,null,null,null,null,null,4.25]
[null,null,null,null,null,null,null,null,null,null,null,null,4.5]
[null,null,null,null,null,null,null,null,null,null,null,null,4.75]
[null,null,null,null,null,null,null,null,null,null,null,null,5]
[null,null,null,null,null,null,null,null,null,null,null,null,5.25]
[null,null,null,null,null,null,null,null,null,null,null,null,5.5]
[null,null,null,null,null,null,null,null,null,null,null,null,5.75]
[null,null,null,null,null,null,null,null,null,null,null,null,6]
[null,null,null,null,null,null,null,null,null,null,null,null,6.25]
[null,null,null,null,null,null,null,null,null,null,null,null,6.5]
[null,null,null,null,null,null,null,null,null,null,null,null,6.75]
[null,null,null,null,null,null,null,null,null,null,null,null,7]
[null,null,null,null,null,null,null,null,null,null,null,null,7.25]
[null,null,null,null,null,null,null,null,null,null,null,null,7.5]
[null,null,null,null,null,null,null,null,null,null,null,null,7.75]
[null,null,null,null,null,null,null,null,null,null,null,null,8]

{"sheet":"Summary","index":1,"n_rows":31,"n_cols":14,"rows_kept":31,"cut":false,"hidden":false,"merged":[]}
[]
[]
[]
[]
[null,null,null,null,null,null,null,null,null,null,null,null,"Agent's Name:"]
[null,null,null,null,null,null,null,null,null,null,null,null,"Company:"]
[null,null,null,null,null,null,null,null,null,null,null,null,"Email Address:"]
[null,null,null,null,null,null,null,null,null,null,null,null,"Phone Number:"]
[null,null,null,null,null,null,null,null,null,null,null,null,"Mailing Address:"]
[null,null,null,null,null,null,null,null,null,null,null,null,"Web Site:"]
[null,null,null,null,null,null,null,null,null,null,null,null,"Notes:"]
[]
[null,null,null,null,null,null,null,null,null,null,null,null,"Original Value",{"$f":"'Cap. Rate'!G5","v":""}]
[null,null,null,null,null,null,null,null,null,null,null,null,"Market  Cap. Rate",{"$f":"'Cap. Rate'!G4","v":0}]
[]
[null,null,null,null,null,null,null,null,null,null,null,null,"New Value",{"$f":"'Cap. Rate'!G31","v":0}]
[null,null,null,null,null,null,null,null,null,null,null,null,"Difference",{"$f":"'Cap. Rate'!I30","v":0}]
[null,null,null,null,null,null,null,null,null,null,null,null,"Percent Change",{"$f":"'Cap. Rate'!K30","v":0}]
[]
[null,null,null,null,null,null,null,null,null,null,null,null,"Change in Rent:",{"$f":"'Cap. Rate'!C10","v":0}]
[null,null,null,null,null,null,null,null,null,null,null,null,"Change in Management:",{"$f":"'Cap. Rate'!C13","v":0}]
[null,null,null,null,null,null,null,null,null,null,null,null,"Change in Maintenance:",{"$f":"'Cap. Rate'!C14","v":0}]
[null,null,null,null,null,null,null,null,null,null,null,null,"Change in Utilities:",{"$f":"'Cap. Rate'!K36","v":0}]
[null,null,null,null,null,null,null,null,null,null,null,null,"Change in Other:",{"$f":"'Cap. Rate'!K37","v":0}]
[]
[null,null,null,null,null,null,null,null,null,null,null,null,"Owner's Name",{"$f":"IF(('Cap. Rate'!B5)=0,\"\",('Cap. Rate'!B5))","v":""}]
[null,null,null,null,null,null,null,null,null,null,null,null,"Property Address",{"$f":"IF(('Cap. Rate'!B8)=0,\"\",('Cap. Rate'!B8))","v":""}]
[]
[null,null,null,null,null,null,null,null,null,null,null,null,null,{"$f":"'Cap. Rate'!C16","v":0}]
[null,null,null,null,null,null,null,null,null,null,null,null,{"$f":"CONCATENATE(N5,\" \", \"at\", \" \",N8)","v":" at "},{"$f":"'Cap. Rate'!C17","v":0}]
[null,null,null,null,null,null,null,null,null,null,null,null,null,{"$f":"'Cap. Rate'!C18","v":0}]